Cogmind - Beta 15 @@@ ROGUE MODE // 2025.05.24 @ 05:09:20 Player: BVrutally Odd Result: Destroyed by S-10 Pest with Light Assault Rifle Performance ------------- Evolutions (0) 0 Regions Visited (2) 400 Robots Destroyed (30) 150 Value Destroyed (816) 816 Prototype IDs (11) 220 Alien Tech Used (0) 0 Bonus (0) 0 TOTAL SCORE: 1586 Bonus ------- None Cogmind --------- Core Integrity 0/250 Matter 242/300 Energy 200/200 System Corruption 0% Temperature Cool (20) Movement Walking (210) Ox1 Location -10/Subcaves Parts ------- > --- POWER (1) -------- Subdweller Power Source > --- PROPULSION (2) --- Makeshift Leg Subdweller Monowheel > --- UTILITY (2) ------ Subdweller Optics Makeshift Light Armor Plating > --- WEAPON (2) ------- Subdweller Beam Cannon Heavy Battle Rifle > --- INVENTORY (5) ---- Subdweller Power Source Subdweller Laser Particle Cannon Subdweller Machine Gun Subdweller Shrapnel Launcher Peak State ------------ > --- POWER ------------ Subdweller Power Source > --- PROPULSION ------- Makeshift Leg Subdweller Monowheel > --- UTILITY ---------- Subdweller Optics Makeshift Light Armor Plating > --- WEAPON ----------- Subdweller Beam Cannon Heavy Battle Rifle > --- INVENTORY -------- Subdweller Power Source Subdweller Laser Particle Cannon Subdweller Machine Gun Subdweller Shrapnel Launcher [Rating: 21] Favorites ----------- Power Ion Engine Engine Ion Engine Propulsion Light Treads Treads Light Treads Leg Aluminum Leg Wheel Subdweller Monowheel Utility Large Storage Unit Device Seismic Detector Storage Large Storage Unit Protection Makeshift Light Armor Plating Weapon Subdweller Laser Energy Gun Subdweller Laser Energy Cannon Particle Cannon Ballistic Gun Heavy Battle Rifle Build | -11 -10 -10 ------- Run | Yrd Mat Sub Slots Evolved . | . . . Power . | . . . Propulsion . | . . . Utility . | . . . Weapon . | . . . Parts Attached 30 | 7 5 18 Power 2 | 1 . 1 Engine 2 | 1 . 1 Core . | . . . Reactor . | . . . Propulsion 8 | 2 2 4 Treads 2 | . 2 . Leg 3 | 2 . 1 Wheel 3 | . . 3 Hover . | . . . Flight . | . . . Utility 9 | 2 1 6 Device 5 | 1 . 4 Storage 2 | 1 1 . Processor . | . . . Hackware . | . . . Protection 2 | . . 2 Artifact . | . . . Weapon 11 | 2 2 7 Energy Gun 7 | 2 . 5 Energy Cannon 3 | . 2 1 Ballistic Gun 1 | . . 1 Ballistic Cannon . | . . . Launcher . | . . . Special Weapon . | . . . Impact Weapon . | . . . Slashing Weapon . | . . . Piercing Weapon . | . . . Special Melee Weapon . | . . . Unidentified Prototypes . | . . . Parts Lost 9 | . . 9 Power 1 | . . 1 Propulsion 4 | . . 4 Utility 3 | . . 3 Weapon 1 | . . 1 Highest Loss Streak 4 | . . 4 To Critical Strikes . | . . . Average Backups 9 | 2 6 10 Power 1 | . 1 1 Propulsion 1 | 1 2 1 Utility . | . 1 . Weapon 5 | . 2 6 Tool/Special . | . . . Unused Backups 11 | . . 11 Power 2 | . . 2 Propulsion . | . . . Utility . | . . . Weapon 9 | . . 9 Tool/Special . | . . . Average Slot Usage (%) 93 | . 99 92 Engine 13 | . 14 13 Treads 13 | . 15 13 Leg 7 | . 12 6 Wheel 5 | . . 6 Device 10 | . 14 9 Storage 9 | . 14 8 Protection 3 | . . 4 Energy Gun 15 | . 8 16 Energy Cannon 10 | . 19 9 Ballistic Gun 1 | . . 2 Peak Build Rating 21 | 7 10 21 Average Rating 11 | 5 9 12 On Entrance 5 | . 7 10 Naked Turns . | . . . Heaviest Build 34 | 15 34 34 Greatest Support 40 | 20 40 40 Greatest Overweight (x) 2 | 1 . 2 Average Overweight (x) . | . . . Largest Inventory Capacity 15 | 8 15 15 Average Capacity 10 | 7 12 10 Most Carried 15 | 4 8 15 Average Carried 9 | 2 6 10 Final Capacity 15 | 8 15 5 Final Carried 8 | 4 8 5 Class Distribution -------------------- 79% | Mutant 12% | Subdweller-Mutant 8% | Scavenger-Mutant Dominant Class ---------------- Mutant | -10/Materials Mutant | -10/Subcaves Resources | -11 -10 -10 ----------- Run | Yrd Mat Sub Matter Collected 535 | 270 . 265 Remotely . | . . . Salvage Created 1243 | 190 . 1053 Parts 79 | 14 . 65 Haulers Intercepted . | . . . Recyclers Shooed . | . . . Parts Field Recycled . | . . . Retrieved Matter . | . . . Parts Self-Destructed 10 | . . 10 Prevented 1 | . . 1 Kills | -11 -10 -10 ------- Run | Yrd Mat Sub Combat Hostiles Destroyed 21 | . . 21 Guns 15 | . . 15 Cannons 6 | . . 6 Classes Destroyed 7 | 3 . 4 Worker 2 | 2 . . Tunneler 4 | 4 . . Recycler 1 | 1 . . Turret 2 | . . 2 Swarmer 4 | . . 4 Cobbler 1 | . . 1 Subdweller 17 | . . 17 Best Kill Streak 7 | 7 . 4 Combat Bots Only 3 | . . 3 Max Kills in Single Turn 1 | 1 . 1 Gunslinging . | . . . Exploded . | . . . Melee . | . . . Uniques/NPCs Destroyed . | . . . Combat | -11 -10 -10 -------- Run | Yrd Mat Sub Hostile Shots Fired 116 | . . 116 Missed 28 | . . 28 Hits 88 | . . 88 Projectile 88 | . . 88 Critical Strikes 2 | . . 2 Damage Taken 1666 | . . 1666 Core 258 | . . 258 Absorbed by Shields . | . . . Core Remaining (%) 100 | 100 . . Volleys Fired 110 | 10 2 98 Largest 2 | 2 2 2 Hottest 136 | 100 100 136 Shots Fired 218 | 20 4 194 Gun 161 | 20 4 137 Cannon 57 | . . 57 Launcher . | . . . Special . | . . . Kinetic 21 | . . 21 Thermal 197 | 20 4 173 Explosive . | . . . Electromagnetic . | . . . Robot Hit Streak 23 | 3 . 23 Robot Miss Streak 3 | 2 2 3 Penetration Max . | . . . Secondary Targets 1 | . . 1 Max Gunslinging Chain 1 | . . 1 Shots Hit Robots 132 | 11 . 121 Core Hits 56 | 8 . 48 Critical Kills 1 | . . 1 Critical Parts Destroyed . | . . . Critical Strikes 3 | 1 . 2 Burn 1 | 1 . . Meltdown 1 | . . 1 Destroy 1 | . . 1 Melee Attacks . | . . . Impact . | . . . Slashing . | . . . Piercing . | . . . Sneak Attacks . | . . . Combat Hostiles . | . . . Follow-up Attacks . | . . . Damage Inflicted 2537 | 136 . 2401 Guns 1897 | 136 . 1761 Cannons 640 | . . 640 Explosions . | . . . Melee . | . . . Ramming . | . . . Kinetic 93 | . . 93 Thermal 2444 | 136 . 2308 Explosive . | . . . Electromagnetic . | . . . Impact . | . . . Slashing . | . . . Piercing . | . . . Highest Corruption . | . . . Average Corruption . | . . . Corruption Purged . | . . . Corruption Blocked . | . . . Overload Shots . | . . . Overflow Damage . | . . . Projectiles . | . . . Explosions . | . . . Melee . | . . . Knockbacks . | . . . Impact . | . . . Kinetic . | . . . Secondary . | . . . Self-Inflicted Damage . | . . . Shots . | . . . Rammed . | . . . Targets Rammed . | . . . Kicked . | . . . Crushed . | . . . Highest Temperature 156 | 156 78 108 Average Temperature 32 | 56 40 26 Received Heat Transfer 303 | . . 303 Siege Activations . | . . . Martial Activations . | . . . Shielding Activations . | . . . Robots Disrupted . | . . . Combat Hostiles . | . . . Robots Corrupted . | . . . Combat Hostiles . | . . . Parts Fried . | . . . Impact Corruptions . | . . . Robots Melted 1 | . . 1 Combat Hostiles . | . . . Parts Melted 8 | 1 . 7 Heat Transferred 3653 | 481 . 3172 Parts Sabotaged . | . . . Parts Stolen . | . . . Parts Stripped . | . . . Power Chain Reactions . | . . . Alert | -11 -10 -10 ------- Run | Yrd Mat Sub Maximum Alert Level . | . . . Low Security (%) 100 | 100 100 . Level 1 . | . . . Level 2 . | . . . Level 3 . | . . . Level 4 . | . . . Level 5 . | . . . High Security . | . . . Max Security . | . . . Peak Influence 20 | 20 . . Initial . | . . . Average 1 | 4 . . Influence Increases 200 | 35 . 165 Destroy 0b10 Robot/C 120 | . . 120 Destroy 0b10 Robot/NC 35 | 35 . . Lose Combat Pursuer 45 | . . 45 Influence Decreases 160 | 35 . 125 Time Decay 140 | 35 . 105 Lost Part 20 | . . 20 Squads Dispatched 1 | . 1 . Investigation . | . . . Extermination . | . . . Reinforcement 1 | . 1 . Assault . | . . . Garrison . | . . . Intercept . | . . . Searches Triggered . | . . . Construction Impeded . | . . . Haulers Reinforced . | . . . Active Scanning Responses . | . . . Cargo Convoy Interrupts . | . . . Stealth | -11 -10 -10 --------- Run | Yrd Mat Sub Distress Signals . | . . . Communications Jammed . | . . . Distress Signals . | . . . Times Spotted 29 | . 3 26 Peak Tracking Total 4 | . 3 4 Tactical Retreats 1 | . . 1 Traps | -11 -10 -10 ------- Run | Yrd Mat Sub Traps Triggered 1 | . . 1 Indirectly . | . . . Trap Hack Attempts . | . . . Triggered . | . . . Disarmed . | . . . Reprogrammed . | . . . Reused . | . . . Traps Extracted . | . . . Installed . | . . . Triggered . | . . . Machines | -11 -10 -10 ---------- Run | Yrd Mat Sub Machines Disabled 2 | . . 2 Max in Single Turn 1 | . . 1 Machines Repaired . | . . . Machines Dismantled . | . . . Machines Sabotaged . | . . . Overloaded Fab Kills . | . . . Hacking | -11 -10 -10 --------- Run | Yrd Mat Sub Machines Accessed 1 | . . 1 Terminals . | . . . Fabricators . | . . . Repair Stations . | . . . Recycling Units . | . . . Scanalyzers . | . . . Garrison Access . | . . . Total Hacks 1 | . . 1 Successful 1 | . . 1 Failed . | . . . Catastrophic . | . . . Database Lockouts . | . . . Manual . | . . . Terminals . | . . . Fabricators . | . . . Repair Stations . | . . . Recycling Units . | . . . Scanalyzers . | . . . Garrison Access . | . . . Terminal Hacks 1 | . . 1 Proto ID Catalog 1 | . . 1 Fabricator Hacks . | . . . Repair Station Hacks . | . . . Recycling Unit Hacks . | . . . Scanalyzer . | . . . Garrison Access Hacks . | . . . Unauthorized Hacks . | . . . Terminals . | . . . Fabricators . | . . . Repair Stations . | . . . Recycling Units . | . . . Scanalyzers . | . . . Garrison Access . | . . . Data Cores Recovered . | . . . Used . | . . . Hacking Detections . | . . . Full Trace Events . | . . . Feedback Events . | . . . Feedback Blocked . | . . . Robot Schematics Acquired . | . . . Robots Built . | . . . Authchips . | . . . Time . | . . . Total Robot Build Rating . | . . . Part Schematics Acquired . | . . . Parts Built . | . . . Authchips . | . . . Time . | . . . Total Part Build Rating . | . . . Parts Repaired . | . . . Time . | . . . Parts Recycled . | . . . Recycled Matter . | . . . Retrieved Matter . | . . . Retrieved Components . | . . . Parts Scanalyzed . | . . . Part Schematics Acquired . | . . . Parts Damaged . | . . . Bothacking | -11 -10 -10 ------------ Run | Yrd Mat Sub Used RIF Installer . | . . . Robots Hacked . | . . . Non-combat . | . . . Combat . | . . . Robot Hacks Applied . | . . . Relay Couplers Released . | . . . Fabnet Peak Effective % . | . . . Robots Rewired . | . . . Allies Hacked . | . . . Hacks Repelled . | . . . Allies | -11 -10 -10 -------- Run | Yrd Mat Sub Total Allies . | . . . Largest Group . | . . . Highest-Rated Group . | . . . Highest-Rated Ally . | . . . Total Orders . | . . . Ally Attacks . | . . . Total Damage . | . . . Kills . | . . . Allies Corrupted . | . . . Allies Melted . | . . . Intel | -11 -10 -10 ------- Run | Yrd Mat Sub Active Infowar (turns) 1636 | 64 297 1275 Optics 401 | . . 401 Seismic 1235 | 64 297 874 Robot Analysis Total . | . . . Derelict Logs Recovered 1 | . . 1 Drone Launches . | . . . Drone Recoveries . | . . . Exploration | -11 -10 -10 ------------- Run | Yrd Mat Sub Turns Passed 2352 | 143 297 1912 Spaces Moved 1113 | 62 117 934 Core 40 | 2 . 38 Treads 475 | . 23 452 Legs 328 | 60 94 174 Wheels 270 | . . 270 Hover . | . . . Flight . | . . . Fastest Speed 50 | 50 120 100 Average Speed 149 | 118 127 153 Slowest Speed 210 | 120 160 210 Overloaded Moves . | . . . Propulsion Burnouts . | . . . Robots Hopped . | . . . Potential Cave-ins . | . . . Cave-ins Triggered . | . . . Exploration Rate (%) 30 | 4 24 64 Regions Visited 2 Branch Regions 1 Pre-discovered Areas 1 | . . 1 Known Exits Taken . | . . . Unknown Exits Taken 2 | 1 1 . Scrap Searched 5 | . . 5 Spaces Dug 4 | . . 4 Terrain Destroyed 4 | . . 4 Melee . | . . . Projectile 4 | . . 4 AOE . | . . . Terrain Rammed . | . . . Walls Destroyed . | . . . Machines Disabled . | . . . Actions | -11 -10 -10 --------- Run | Yrd Mat Sub Total 1577 | 108 260 1209 Wait 285 | 25 130 130 Move 1111 | 61 116 934 Hop . | . . . Pick Up 21 | 5 4 12 Fast Attach 17 | 6 2 9 Attach 6 | 1 . 5 Detach . | . . . Swap 11 | . 3 8 Drop 11 | . 3 8 Fire 110 | 10 2 98 Melee . | . . . Ram . | . . . Kick . | . . . Crush . | . . . Escape Stasis . | . . . Rewire . | . . . Trap . | . . . Miscellaneous 5 | . . 5 Route ------- -11/Scrapyard -10/Materials -10/Subcaves (discovered 1 exit: [*Rec]) History --------- Turn | Location | Event 8 | -11/Scrapyard | Discovered new exit (range 15) 144 | -11/Scrapyard | Entered Materials 314 | -10/Materials | Build established: Mutant 418 | -10/Materials | Discovered new exit (range 10) 441 | -10/Materials | Entered Subcaves 442 | -10/Subcaves | Approached by a straggling Scientist 561 | -10/Subcaves | A swath of the cavern ceiling suddenly collapsed 774 | -10/Subcaves | Discovered new exit (range 15) 1111 | -10/Subcaves | Disturbed a concealed Subdweller 1155 | -10/Subcaves | Core integrity fell below 50% 1313 | -10/Subcaves | Ambushed by Subdweller buried in earth 1491 | -10/Subcaves | Shifting Twisted Machinery released Sub. Laser 1518 | -10/Subcaves | Shifting Twisted Machinery released Sub. Laser 1819 | -10/Subcaves | Visited 4L-MR0's lab 1835 | -10/Subcaves | Core integrity fell below 20% 1890 | -10/Subcaves | Lost 4 parts (1p2n1u) 2051 | -10/Subcaves | Ambushed by angry Subdweller bent on revenge 2143 | -10/Subcaves | A swath of the cavern ceiling suddenly collapsed 2353 | -10/Subcaves | Destroyed by S-10 Pest with Light Assault Rifle Last Messages --------------- 02050_ Acquired Hvy. Battle Rifle. 02051_ KD-RC6(R) angrily emerges from the Twisted Machinery. 02051_ KD-RC6(R): "MADSUB!" 02071_ KD-RC6(R) destroyed. 02074_ Acquired 19 matter. 02078_ CZ-82H(R): "OHNO!" 02098_ CZ-82H(R) destroyed. 02101_ Acquired 12 matter. 02113_ Dropped Imp. Light Cannon. 02114_ Acquired Sub. Beam Cannon. 02127_ Acquired Mak. Leg. A swath of the cavern ceiling suddenly collapses. 02143_ Sub. Monowheel shoots sparks and powers down. 02144_ Dropped Broken Sub. Monowheel. 02157_ Acquired Broken Sub. Monowheel. 02348_ S-10 Pest destroyed. 02352_ Acquired 14 matter. Map ----- +----------------------------------------------------+ | ?????????????????????????????????????????????????? | | ?????????????????????????????????????????????????? | | ?????????????????????????????????????????????????? | | ?????????????????????????????????????????????????? | | ?????????????????????????????????????????????????? | | ?????????????????????????????????????????????????? | | ?????????????????????????????????????????????????? | | ?????????????????????????????????????????????????? | | ?????????????????????????????????????????????????? | | ?????????????????????????????????????????????????? | | ?????????????????????????????????????????????????? | | ???????????????????###???????????????????????????? | | ??????????????????## ##??????????????????????????? | | ????????????####### #??????????????????????????? | | ???????????## ## #?###??????????????????????? | | ???????????# ## #??????????????????????? | | ???????????# #??????????????????????? | | ???????????# #??????????????????????? | | ???????????## ## ##??????????????????????? | | ????????????## ###### ##???????????????????????? | | ?????????????##????## #????????????????????????? | | ???????????????????# #????????????????????????? | | ???????????????????# ##??#####?????????????????? | | ???????????????????## #??# ##????????????????? | | ???????????????????## ###%s #### #????????? | | ??????????????????## @=" #?????????? | | ??????????????????#"" ["" "" #??????????? | | ??????????????????##"" """""" "" " ##??????????? | | ???????????????????##"" """"""""""?????????????? | | ????????????????????##""" ""#""#????????????????? | | ?????????????????????### "####?""????????????????? | | ??????????????####?????#; #??????????????????????? | | ????????????###""####### #??????????????????????? | | ????????????# """ #"##"# ##?????????????????????? | | ????????????#"#### """#" ##????????????????????? | | ????????????##""## ## # #;;"#??????????????????#?# | | ?????????????##"##### ###;"#??????????????????# # | | ??????????????#""""## ######??????????????????? | | ??????????????###" # #""#????????????????????????# | | ????????????????## "# #"##???????????????????????? | | ?????????????????####""###???????????????????????? | | ????????????????????##"#"#????##?????????????????? | | ???????????#######??#"""#?????# #????????????????? | | ???????????# ####"###????## #???????????????? | | ???????????# #"###???## ???????????????# | | ???????????## ""#"##???? ?????????????## | | ????????????# ## " #????? ##??????????## | | ????????????## ### #????? ??????##### | | ????????????# #### ##??????# ?????## | | ????????????# ### ##?????? ?# #????# | +----------------------------------------------------+ Best States ------------- Heat Dissipation 25 Coolant Potential 50 Energy Generation 15 Energy Capacity 250 Matter Stores 300 Matter Capacity 300 Sight Range 21 Terrain Scan Density 10 Armor Coverage 800 Evasion (%) 55 Recoil Reduction 2 Item Schematics ----------------- None Robot Schematics ------------------ None Fabricated ------------ Nothing Repaired ---------- Nothing Alien Tech Used ----------------- None Achievements -------------- None Challenges ------------ None Game ------ Seed MetaEtherialBrace Manual? 0 Play Time 00:13:34 Cumulative 303.7 hours Start 2025.05.24 @ 04:58:07 End 2025.05.24 @ 05:09:20 Sessions 1 Manual Loads 0 Difficulty Rogue Special Mode None Game No. 144 Rogue 81 Adventurer 16 Explorer 47 Win Type - Total 40 Types 23/5/5/1/0/1/2/1/1/1 Lore% 89 Gallery% 87 Achievement% 83 Wizard Run 0 Options --------- Layout 2 ASCII 0 Keyboard 0 Movement Mouse Keybinds 0 Fullscreen 1 Font 32/Tamsyn Map View 50x44 Zoom Use 0% Tactical HUD 1 Map Filters NONE Filters NONE Steam 1 RUN: cbf72a61-4000-4d1b-93de-821a262b1fdd